bitfinex-derivatives/quotes_BTCF0:USTF0_20240917
["timestamp","ask_amount","ask_price","bid_price","bid_amount"]
[1726582571345,1.4623975,60001.0,60000.0,15.33876847]
[1726582571639,0.8623975,60001.0,60000.0,15.33976847]
[1726582572450,0.25127027,60001.0,60000.0,16.93972847]
[1726582572751,0.083251,60057.0,60018.0,0.083303]
[1726582572752,0.3608,60033.0,60018.0,0.083303]
[1726582572952,0.44,60046.0,60032.0,0.3608]
[1726582573141,0.0084,60064.0,60031.0,0.99996]
[1726582573142,0.50121484,60032.0,60031.0,0.00232]
[1726582573338,0.50121484,60032.0,60013.0,0.3647]
[1726582573538,0.86201484,60036.0,60013.0,0.0039]
[1726582573539,0.8008,60014.0,60013.0,0.0039]
[1726582573752,0.8008,60014.0,60002.0,0.3608]
[1726582573954,0.3608,60008.0,60002.0,0.3608]
[1726582574252,0.3608,60009.0,60002.0,0.3608]
[1726582574449,0.44,60014.0,60002.0,0.3608]
[1726582574450,0.5001664,60007.0,60002.0,0.3608]
[1726582574650,0.44,60014.0,60002.0,0.3608]
[1726582574651,0.25132399,60008.0,60002.0,0.3608]
[1726582574855,0.083315,60010.0,60002.0,0.3608]
[1726582575052,0.3608,60019.0,60002.0,0.3608]
[1726582575053,0.3608,60009.0,60002.0,0.3608]
[1726582575366,0.3608,60009.0,60000.0,15.34108847]
[1726582575367,0.083326,60002.0,60000.0,15.34108847]
[1726582575554,0.083326,60002.0,60000.0,15.33876847]
[1726582575753,0.99810293,60001.0,60000.0,15.32208847]
[1726582576145,1.59810293,60001.0,60000.0,15.32208847]
[1726582576343,1.95890293,60001.0,60000.0,14.44899948]
[1726582576549,0.85890293,60001.0,60000.0,14.44899948]
[1726582576744,0.083327,60002.0,60000.0,14.44899948]
[1726582577059,0.3608,60010.0,60000.0,14.44899948]
[1726582577060,0.8008,60010.0,60000.0,14.44899948]
[1726582577264,0.083324,60004.0,60000.0,14.44899948]
[1726582577447,0.3608,60002.0,60000.0,14.44899948]
[1726582577647,0.083325,60003.0,60000.0,14.44899948]
[1726582577648,0.24847991,60003.0,60000.0,14.44899948]
[1726582577866,0.083317,60009.0,60000.0,14.44899948]
[1726582578160,0.3608,60010.0,60000.0,14.44899948]
[1726582578161,0.24910843,60008.0,60000.0,14.44899948]
[1726582578468,0.3608,60010.0,60000.0,14.44899948]
[1726582578469,0.083322,60005.0,60000.0,14.44899948]
[1726582578852,0.24910843,60004.0,60000.0,14.44899948]
[1726582579254,0.083326,60002.0,60000.0,14.44999948]
[1726582579757,0.083326,60002.0,60000.0,14.44979948]
[1726582580654,0.083326,60002.0,60000.0,14.44879948]
[1726582580854,0.083326,60002.0,60000.0,14.44979948]
[1726582582259,1.36216946,60001.0,60000.0,14.44979948]
[1726582582560,2.09042527,60001.0,60000.0,14.30171848]
[1726582582759,2.03061385,60001.0,60000.0,13.97462848]
[1726582583157,0.99044164,60001.0,60000.0,13.97462848]
[1726582583351,0.25027449,60001.0,60000.0,13.97362848]
[1726582583664,0.69440149,60001.0,60000.0,13.97462848]
[1726582584050,1.29292015,60001.0,60000.0,13.97462848]
[1726582584251,1.62666448,60001.0,60000.0,13.97462848]
[1726582584460,1.54333748,60001.0,60000.0,13.97462848]
[1726582584654,0.94333748,60001.0,60000.0,13.97462848]
[1726582584865,0.33374433,60001.0,60000.0,13.97462848]
[1726582585753,1.13454433,60001.0,60000.0,13.97462848]
[1726582586061,2.06672446,60001.0,60000.0,13.97462848]
[1726582586267,2.65005146,60001.0,60000.0,13.82454648]
[1726582586466,2.62654469,60001.0,60000.0,13.82454648]
[1726582586761,1.52654469,60001.0,60000.0,13.82454648]
[1726582586969,2.12654469,60001.0,60000.0,13.82454648]
[1726582587569,2.62654469,60001.0,60000.0,13.82454648]
[1726582587958,2.12654469,60001.0,60000.0,13.82454648]
[1726582588165,2.70987169,60001.0,60000.0,13.68103548]
[1726582588361,2.62654469,60001.0,60000.0,13.68103548]
[1726582588667,0.64241745,60001.0,60000.0,13.68103548]
[1726582588857,0.72574445,60001.0,60000.0,13.68103548]
[1726582589067,1.44321745,60001.0,60000.0,13.68103548]
[1726582589364,2.62654445,60001.0,60000.0,13.68103548]
[1726582589569,2.69498839,60001.0,60000.0,13.68103548]
[1726582589866,2.6949866,60001.0,60000.0,13.68003548]
[1726582590069,2.6949866,60001.0,60000.0,13.68103548]
[1726582590382,2.6949866,60001.0,60000.0,13.18435181]
[1726582590565,2.7783136,60001.0,60000.0,13.18435181]
[1726582590768,2.96756006,60001.0,60000.0,13.18435181]
[1726582591063,3.044641,60001.0,60000.0,13.04758181]
[1726582591367,2.77206937,60001.0,60000.0,12.90231781]
[1726582591565,2.96016748,60001.0,60000.0,12.19132481]
[1726582591764,2.96016748,60001.0,60000.0,11.92527581]
[1726582591963,2.96016748,60001.0,60000.0,11.77531681]
[1726582592162,2.97763362,60001.0,60000.0,11.46951081]
[1726582592358,3.27390943,60001.0,60000.0,11.26643081]
[1726582592553,3.27390943,60001.0,60000.0,11.07282783]
[1726582592767,3.27390943,60001.0,60000.0,10.77215283]
[1726582592958,3.97390943,60001.0,60000.0,10.11346683]
[1726582593162,3.89058243,60001.0,60000.0,9.74962883]
[1726582593462,3.45058243,60001.0,60000.0,9.09352044]
[1726582593658,3.89058243,60001.0,60000.0,9.01695544]
[1726582593865,3.20725543,60001.0,60000.0,9.01695544]
[1726582594171,3.02392843,60001.0,60000.0,9.01695544]
[1726582594464,3.72392843,60001.0,60000.0,9.01695544]
[1726582594666,3.72392843,60001.0,60000.0,8.42795044]
[1726582594869,3.72392843,60001.0,60000.0,8.42314544]
[1726582595070,3.72392843,60001.0,60000.0,8.39457044]
[1726582595276,3.72392843,60001.0,60000.0,8.37028044]
[1726582595568,3.72392843,60001.0,60000.0,7.88568981]
[1726582595767,3.22392843,60001.0,60000.0,4.95163585]
[1726582595962,3.73792843,60001.0,60000.0,2.15060127]
[1726582596164,3.73792843,60001.0,60000.0,2.02498128]
[1726582596363,3.67810844,60001.0,60000.0,2.02498128]
[1726582596557,3.67810844,60001.0,60000.0,2.02255928]
[1726582596870,3.54223673,60001.0,60000.0,1.94481727]
[1726582597269,3.54223673,60001.0,60000.0,1.90481727]
[1726582597578,3.54223673,60001.0,60000.0,1.63255727]
[1726582597764,3.54223673,60001.0,60000.0,1.35680727]
[1726582598071,3.54223673,60001.0,60000.0,1.11108148]
[1726582598272,3.54223673,60001.0,60000.0,1.09508148]
[1726582598458,0.33617153,59990.0,59973.0,0.0084]
[1726582598662,1.1616,59974.0,59965.0,0.1266]
[1726582598867,1.1616,59974.0,59953.0,0.3692]
[1726582598868,0.8008,59966.0,59953.0,0.3608]
[1726582599072,0.44,59954.0,59953.0,0.3608]
[1726582599375,0.69024538,59954.0,59942.0,0.3608]
[1726582599565,0.45,59949.0,59947.0,1.99996]
[1726582599767,0.50190442,59954.0,59947.0,1.99996]
[1726582599961,0.3608,59959.0,59948.0,1.99996]
[1726582600166,0.50055266,59953.0,59948.0,1.99996]
[1726582600559,0.3608,59954.0,59952.0,1.99996]
[1726582600760,0.44,59959.0,59953.0,1.99996]
[1726582600973,0.44,59959.0,59955.0,1.99996]
[1726582601168,0.44,59970.0,59958.0,1.99996]
[1726582601371,0.3608,59963.0,59960.0,1.99996]
[1726582601564,0.3608,59963.0,59958.0,1.7988059]
[1726582601565,0.49786086,59965.0,59961.0,1.99996]
[1726582601868,0.24860463,59962.0,59961.0,1.99996]
[1726582602074,0.06849301,59975.0,59968.0,1.99996]
[1726582602270,0.44,59976.0,59968.0,1.99996]
[1726582602477,0.24895638,59969.0,59968.0,1.99996]
[1726582602664,0.49821261,59975.0,59968.0,1.99996]
[1726582602872,0.24895638,59972.0,59968.0,1.99996]
[1726582603165,0.28479514,59974.0,59973.0,2.083325]
[1726582603363,0.01704457,59990.0,59973.0,1.99996]
[1726582603573,0.44,59992.0,59979.0,1.99996]
[1726582603574,0.24941781,59980.0,59979.0,1.99996]
[1726582603879,0.24941781,59982.0,59979.0,1.99996]
[1726582604175,0.25137695,59980.0,59979.0,1.99996]
[1726582604370,0.2508786,59982.0,59979.0,1.99996]
[1726582604570,0.8008,59987.0,59979.0,1.99996]
[1726582604571,0.25137695,59981.0,59979.0,1.99996]
[1726582604767,0.25137695,59986.0,59979.0,1.99996]
[1726582604973,0.25068452,59986.0,59985.0,0.3608]
[1726582605172,0.44,59987.0,59985.0,0.3608]
[1726582605473,0.50107122,59986.0,59985.0,0.3608]
[1726582605668,0.50107122,59986.0,59979.0,0.001]
[1726582605669,0.86187122,59986.0,59979.0,0.001]
[1726582605873,0.50107122,59986.0,59979.0,2.00096]
[1726582606272,0.50107122,59986.0,59985.0,0.3608]
[1726582606878,0.50107122,59986.0,59985.0,2.36076]
[1726582606879,0.25138684,59986.0,59985.0,2.36076]
[1726582607066,0.26238684,59986.0,59985.0,2.36076]
[1726582607270,0.06849301,60000.0,59985.0,4.1595659]
[1726582607481,0.44,60004.0,59996.0,0.3608]
[1726582607677,0.50033811,59997.0,59992.0,2.00228]
[1726582607980,0.61250793,60006.0,59999.0,1.99996]
[1726582607981,0.50033811,60003.0,59999.0,1.99996]
[1726582608279,0.50033811,60003.0,59996.0,0.3608]
[1726582608280,0.25170793,60005.0,60000.0,1.99996]
[1726582608474,0.24850794,60002.0,60000.0,1.99996]
[1726582608673,0.44,60001.0,59996.0,0.3632]
[1726582608876,0.69152827,60001.0,59990.0,0.00232]
[1726582609073,0.44,59991.0,59990.0,1.99996]
[1726582609274,0.44,59991.0,59987.0,0.3608]
[1726582609476,0.69028908,59991.0,59987.0,0.3608]
[1726582609783,0.3608,59988.0,59975.0,0.3608]
[1726582609984,0.44,59986.0,59975.0,0.3608]
[1726582610379,0.93965732,59986.0,59975.0,0.3608]
[1726582610583,0.44,59976.0,59975.0,0.3608]
[1726582610785,0.44,59976.0,59975.0,0.24602322]
[1726582611480,0.06849301,59979.0,59975.0,2.24598322]
[1726582611675,0.8008,59982.0,59976.0,1.99996]
[1726582611676,0.06849301,59981.0,59976.0,1.99996]
[1726582611877,0.24984493,59979.0,59976.0,1.99996]
[1726582612073,0.44,59989.0,59980.0,1.99996]
[1726582612273,0.44,59989.0,59981.0,0.3608]
[1726582612479,0.24986823,59986.0,59981.0,0.222355]
[1726582612679,0.49971316,59988.0,59981.0,0.583155]
[1726582612981,0.24986823,59985.0,59981.0,2.2986059]
[1726582613280,0.8008,59995.0,59986.0,1.99996]
[1726582613281,0.25114328,59988.0,59986.0,1.99996]
[1726582613491,0.25114328,59988.0,59982.0,0.2746]
[1726582613687,0.44,59991.0,59987.0,1.99996]
[1726582613688,0.25114328,59990.0,59987.0,1.99996]
[1726582613984,0.2494116,59990.0,59988.0,1.99996]
[1726582614280,0.25107796,59989.0,59982.0,2.14378]
[1726582614480,0.25107796,59989.0,59982.0,2.14146]
[1726582614676,0.2497254,59988.0,59982.0,2.14146]
[1726582614874,0.2497254,59988.0,59987.0,0.001]
[1726582615076,0.6897254,59988.0,59987.0,0.001]
[1726582615275,1.30193916,59988.0,59987.0,0.001]
[1726582615483,1.05221376,59988.0,59987.0,0.001]
[1726582615792,1.30369247,59988.0,59982.0,0.001]
[1726582616083,0.8008,59983.0,59982.0,0.001]
[1726582616586,1.30351105,59983.0,59982.0,0.001]
[1726582617476,1.30351105,59983.0,59961.0,0.1316]
[1726582617678,0.44,59968.0,59967.0,1.99996]
[1726582618284,0.68915013,59968.0,59967.0,1.99996]
[1726582618485,0.93889813,59968.0,59958.0,0.3608]
[1726582618693,0.49889813,59968.0,59965.0,1.99996]
[1726582619085,0.252748,59968.0,59967.0,2.00096]
[1726582619281,0.003,59968.0,59967.0,3.68497429]
[1726582619483,0.003,59968.0,59967.0,3.31647687]
[1726582620399,0.003,59968.0,59967.0,3.39985187]
[1726582620684,0.44,59969.0,59967.0,1.51667097]
[1726582620889,0.44,59969.0,59965.0,0.001]
[1726582620890,0.003,59968.0,59965.0,0.001]
[1726582621088,0.003,59968.0,59965.0,1.7998059]
[1726582621289,0.003,59968.0,59967.0,1.60004597]
[1726582621588,0.3608,59979.0,59977.0,0.083361]
[1726582621793,0.3608,59979.0,59978.0,3.36457575]
[1726582621986,0.44,59984.0,59978.0,1.56576985]
[1726582622186,0.44,59984.0,59981.0,1.48241085]
[1726582622394,0.44,59984.0,59982.0,0.083353]
[1726582622577,0.44,59984.0,59981.0,1.48241085]
[1726582622989,0.44,59984.0,59982.0,1.48241085]
[1726582623779,0.44,59984.0,59983.0,1.48241085]
[1726582624392,0.44,59984.0,59981.0,1.48241085]
[1726582624693,0.8008,59982.0,59978.0,1.48241085]
[1726582625083,0.25141121,59981.0,59978.0,1.48241085]
[1726582625285,0.50245663,59981.0,59964.0,0.3608]
[1726582625481,0.50245663,59981.0,59970.0,2.1596059]
[1726582625482,0.44,59974.0,59970.0,2.1596059]
[1726582625692,0.44,59979.0,59977.0,1.48241085]
[1726582625891,0.44,59979.0,59978.0,0.001]
[1726582626192,0.93840574,59979.0,59978.0,0.001]
[1726582626392,1.29920574,59979.0,59978.0,0.001]
[1726582626595,1.29920574,59979.0,59958.0,0.3608]
[1726582626799,0.85920574,59979.0,59970.0,1.48241085]
[1726582626997,0.3608,59971.0,59962.0,0.00244]
[1726582627298,0.3608,59963.0,59962.0,1.79781136]
[1726582627489,0.49878216,59970.0,59968.0,1.48241085]
[1726582627793,0.3608,59971.0,59968.0,1.48241085]
[1726582627998,0.3608,59971.0,59962.0,1.80013136]
[1726582627999,0.93918911,59969.0,59962.0,0.00232]
[1726582628188,0.8008,59963.0,59953.0,0.3608]
[1726582628498,0.6431296,59962.0,59957.0,1.29276864]
[1726582628793,0.6431296,59962.0,59953.0,2.15861136]
[1726582628794,0.14556138,59961.0,59955.0,1.29276864]
[1726582628997,0.14556138,59960.0,59955.0,1.29276864]
[1726582629300,0.14556138,59960.0,59953.0,0.3608]
[1726582629301,0.49986712,59960.0,59953.0,0.3608]
[1726582629596,0.3608,59957.0,59953.0,0.009]
[1726582629984,0.44,59954.0,59953.0,0.009]
[1726582630193,0.5170949,59954.0,59953.0,0.009]
[1726582630390,0.49893812,59954.0,59953.0,3.182974]
[1726582630591,0.3608,59957.0,59953.0,3.182974]
[1726582630893,0.8008,59957.0,59955.0,1.29276864]
[1726582631082,0.25154698,59956.0,59955.0,0.001]
[1726582631287,0.57800751,59956.0,59955.0,0.001]
[1726582631486,0.57800751,59956.0,59948.0,0.32368076]
[1726582631687,0.0770949,59955.0,59952.0,1.29276864]
[1726582631883,0.0770949,59954.0,59951.0,1.29276864]
[1726582632090,0.3608,59952.0,59950.0,1.29276864]
[1726582632392,0.57873711,59951.0,59936.0,0.00250266]
[1726582632587,0.57873711,59951.0,59937.0,1.29276864]
[1726582632588,0.3408,59938.0,59937.0,1.29276864]
[1726582632903,0.3408,59938.0,59936.0,1.80263402]
[1726582632904,0.7908,59938.0,59936.0,1.80263402]
[1726582633193,0.7908,59938.0,59937.0,1.29276864]
[1726582633393,0.8108,59938.0,59937.0,1.29276864]
[1726582633596,0.8108,59938.0,59936.0,0.00232]
[1726582633803,1.06032251,59938.0,59936.0,0.083417]
[1726582633996,1.06032251,59938.0,59934.0,0.86142]
[1726582634299,1.06032251,59938.0,59937.0,1.29276864]
[1726582635291,1.06032251,59938.0,59936.0,0.003]
[1726582635499,1.31156793,59938.0,59934.0,0.86142]
[1726582635699,1.31156793,59938.0,59937.0,0.001]
[1726582635700,1.31956793,59938.0,59937.0,0.001]
[1726582635997,1.68036793,59938.0,59937.0,0.001]
[1726582636200,1.68036793,59938.0,59937.0,1.29376864]
[1726582636394,1.68036793,59938.0,59937.0,0.001]
[1726582637602,1.68036793,59938.0,59934.0,0.18753342]
[1726582638191,1.67936793,59938.0,59936.0,0.001]
[1726582638386,1.67936793,59938.0,59934.0,0.18753342]
[1726582638586,1.67936793,59938.0,59934.0,0.18553342]
[1726582638797,0.45,59936.0,59919.0,0.00087169]
[1726582639001,0.86856793,59938.0,59934.0,0.3358]
[1726582639194,0.86132112,59935.0,59934.0,0.3358]
[1726582639388,0.3608,59935.0,59934.0,0.3368]
[1726582639590,0.3608,59935.0,59919.0,0.00087169]
[1726582639890,0.3608,59920.0,59919.0,0.00087169]
[1726582640100,0.3608,59924.0,59923.0,1.29276864]
[1726582640489,0.61109673,59924.0,59923.0,1.29276864]
[1726582640889,0.3608,59932.0,59929.0,0.083426]
[1726582641094,0.3608,59932.0,59930.0,1.29276864]
[1726582641308,0.24883682,59931.0,59930.0,1.29276864]
[1726582641700,0.24883682,59931.0,59921.0,0.01725321]
[1726582641905,0.45,59923.0,59921.0,1.79781136]
[1726582642104,0.45,59923.0,59921.0,1.29276864]
[1726582642305,0.25101267,59922.0,59921.0,1.29276864]
[1726582642497,0.25101267,59922.0,59919.0,0.00087169]
[1726582642705,0.49973035,59922.0,59920.0,1.29276864]
[1726582642922,0.25101267,59922.0,59921.0,1.37620764]
[1726582643406,0.25101267,59922.0,59921.0,3.09058]
[1726582643611,0.25101267,59922.0,59921.0,3.174019]
[1726582643612,0.25014103,59922.0,59921.0,3.174019]
[1726582644002,0.25014103,59922.0,59921.0,3.09058]
[1726582644207,0.25014103,59922.0,59921.0,3.09158]
[1726582644612,0.25014103,59922.0,59921.0,3.175019]
[1726582644807,0.25014103,59922.0,59921.0,1.88125036]
[1726582645107,0.25414103,59922.0,59921.0,3.09058]
[1726582645801,0.25414103,59922.0,59921.0,1.29276864]
[1726582646100,0.25414103,59922.0,59921.0,0.001]
[1726582646101,0.25714103,59922.0,59921.0,0.001]
[1726582646810,0.25714103,59922.0,59921.0,1.29376864]
[1726582648405,0.25714103,59922.0,59921.0,1.37720764]
[1726582648601,0.25714103,59922.0,59921.0,3.175019]
[1726582648602,0.007,59922.0,59921.0,3.175019]
[1726582648801,0.1391,59941.0,59921.0,3.175019]
[1726582648802,0.3608,59938.0,59936.0,0.083417]
[1726582649108,0.25194327,59937.0,59936.0,1.29276864]
[1726582649309,0.25194327,59937.0,59928.0,0.083428]
[1726582649511,0.25194327,59937.0,59923.0,0.3608]
[1726582649512,0.45,59929.0,59923.0,0.3608]
[1726582649710,0.45,59929.0,59921.0,1.79881136]
[1726582649916,0.8108,59933.0,59928.0,1.29276864]
[1726582650104,0.45,59938.0,59936.0,1.29276864]
[1726582650505,0.24874643,59937.0,59936.0,1.29276864]
[1726582650709,0.3608,59940.0,59939.0,0.083413]
[1726582650910,0.7,59981.0,59939.0,0.083413]
[1726582650911,0.01670613,59956.0,59949.0,1.29276864]
[1726582651123,0.44,59951.0,59950.0,1.29276864]
[1726582651413,0.44,59951.0,59936.0,0.001]
[1726582651414,0.008,59938.0,59936.0,0.001]
[1726582651713,0.008,59938.0,59936.0,1.43801136]
[1726582651918,0.008,59938.0,59937.0,1.05716864]
[1726582652114,0.00084,59941.0,59937.0,1.50138464]
[1726582652308,0.01713429,59951.0,59940.0,1.14058064]
[1726582652309,0.44,59945.0,59940.0,1.14058064]
[1726582652613,0.25145345,59945.0,59944.0,1.05716864]
[1726582653009,0.25145345,59949.0,59944.0,1.05716864]
[1726582653319,0.69011475,59945.0,59944.0,1.05716864]
[1726582653616,0.25011475,59949.0,59948.0,1.05716864]
[1726582653816,0.44,59951.0,59948.0,2.85498]
[1726582654005,0.44,59951.0,59950.0,1.05716864]
[1726582654207,0.43988,59951.0,59950.0,1.05716864]
[1726582654721,0.44,59956.0,59950.0,2.49418]
[1726582655017,0.44,59956.0,59953.0,1.05716864]
[1726582655218,0.25166425,59955.0,59953.0,1.05716864]
[1726582655423,0.25166425,59955.0,59953.0,1.43701136]
[1726582655719,1.05989136,59954.0,59934.0,0.3608]
[1726582655921,1.05989136,59954.0,59948.0,1.05716864]
[1726582655922,0.3608,59949.0,59948.0,1.05716864]
[1726582656119,0.3608,59949.0,59944.0,1.05716864]
[1726582656310,0.86085037,59949.0,59944.0,1.05716864]
[1726582656517,0.86085037,59949.0,59942.0,0.3608]
[1726582656721,0.45,59943.0,59934.0,0.3608]
[1726582656907,0.86085037,59949.0,59920.0,0.23014]
[1726582656908,0.45,59935.0,59926.0,0.3608]
[1726582657113,0.3608,59932.0,59930.0,1.05716864]
[1726582657416,0.25038677,59931.0,59929.0,1.05716864]
[1726582657607,0.5010379,59931.0,59926.0,0.3608]
[1726582658714,0.5010379,59931.0,59929.0,0.001]
[1726582658923,0.45,59930.0,59929.0,0.001]
[1726582659311,0.94933286,59930.0,59929.0,0.001]
[1726582659622,0.94933286,59930.0,59917.0,0.3608]
[1726582659811,0.45,59918.0,59917.0,1.41796864]
[1726582660010,0.45,59918.0,59917.0,1.05716864]
[1726582660223,0.6999523,59918.0,59917.0,1.05716864]
[1726582660430,0.6999523,59918.0,59917.0,2.85498]
[1726582661714,0.45,59928.0,59917.0,2.85498]
[1726582661913,0.45,59929.0,59926.0,0.3608]
[1726582662121,0.55079841,59946.0,59926.0,0.3608]
[1726582662122,0.25162958,59927.0,59926.0,0.3608]
[1726582662320,0.4822682,59946.0,59926.0,3.538412]
[1726582662321,0.4831082,59946.0,59926.0,3.538412]
[1726582662521,0.50319616,59945.0,59944.0,1.05716864]
[1726582662726,0.4831082,59946.0,59944.0,1.05716864]
[1726582662910,0.1214682,59946.0,59944.0,1.05716864]
[1726582663116,0.1423,59957.0,59945.0,1.05716864]
[1726582663327,0.1423,59957.0,59944.0,1.43701136]
[1726582663328,0.37771877,59953.0,59949.0,1.05716864]
[1726582663620,0.45,59950.0,59949.0,1.05716864]
[1726582664020,0.69874743,59950.0,59949.0,1.05716864]
[1726582664418,0.94812608,59950.0,59944.0,0.001]
[1726582664625,0.94812608,59950.0,59944.0,1.05816864]
[1726582664626,0.45,59945.0,59944.0,1.05816864]
[1726582664825,0.49896608,59950.0,59944.0,1.05816864]
[1726582665021,0.70056239,59945.0,59944.0,1.05816864]
[1726582665223,0.45,59945.0,59944.0,0.001]
[1726582665445,0.45,59945.0,59936.0,0.3608]
[1726582665637,0.25058283,59945.0,59942.0,1.05716864]
[1726582666919,0.26731152,59945.0,59942.0,1.05716864]
[1726582667132,0.45,59943.0,59942.0,1.43701136]
[1726582667532,0.45,59943.0,59942.0,2.49418]
[1726582667533,0.69906073,59943.0,59942.0,2.49418]
[1726582667939,0.69906073,59943.0,59936.0,0.3608]
[1726582668131,0.45,59937.0,59936.0,1.79781136]
[1726582668428,0.06853021,59950.0,59949.0,0.0834]
[1726582668627,0.44,59958.0,59957.0,1.05716864]
[1726582669132,0.68920045,59958.0,59957.0,1.05716864]
[1726582671230,1.05000045,59958.0,59957.0,0.95145178]
[1726582671433,1.30106513,59958.0,59957.0,0.001]
[1726582671646,1.36959534,59958.0,59957.0,0.001]
[1726582671928,0.70578089,59958.0,59957.0,0.83762237]
[1726582672329,0.70578089,59958.0,59957.0,0.001]
[1726582672632,0.95683286,59958.0,59957.0,0.001]
[1726582672831,0.50025242,59958.0,59957.0,1.77505046]
[1726582673020,0.44,59975.0,59957.0,2.37505046]
[1726582673225,0.44,59975.0,59974.0,1.19742237]
[1726582673526,0.42933021,59992.0,59980.0,0.083356]
[1726582673527,0.44,59982.0,59980.0,0.083356]
[1726582673726,0.44,59982.0,59981.0,0.083355]
[1726582673926,0.44,59982.0,59980.0,0.3608]
[1726582673927,0.24920899,59986.0,59985.0,0.08335]
[1726582674239,0.44,59992.0,59985.0,0.3608]
[1726582674429,0.24907748,60001.0,59991.0,0.83662237]
[1726582674623,0.01639153,60002.0,59995.0,0.3608]
[1726582674835,0.24942074,60000.0,59995.0,0.3608]
[1726582675129,0.44,59996.0,59990.0,0.3608]
[1726582675328,0.49849822,60001.0,59989.0,0.83662237]
[1726582675329,0.3608,59994.0,59989.0,0.83662237]
[1726582675528,0.44,59990.0,59989.0,0.83662237]
[1726582675733,0.8008,59990.0,59985.0,0.001]
[1726582675922,1.04961822,59990.0,59988.0,0.83662237]
[1726582676119,1.29874247,59990.0,59988.0,0.83662237]
[1726582676527,0.7,59989.0,59988.0,0.83662237]
[1726582676930,1.20044252,59989.0,59969.0,0.1605]
[1726582677133,0.50044252,59989.0,59983.0,0.83662237]
[1726582677638,0.51689681,59989.0,59983.0,0.83662237]
[1726582677835,0.51689681,59989.0,59985.0,0.001]
[1726582678327,0.44,59986.0,59985.0,0.001]
[1726582678528,0.44,59986.0,59985.0,0.3608]
[1726582678733,0.68923489,59986.0,59985.0,0.3608]
[1726582678930,0.68923489,59986.0,59985.0,1.19742237]
[1726582679125,0.68923489,59986.0,59985.0,2.13485046]
[1726582679535,0.68923489,59986.0,59985.0,2.13585046]
[1726582680733,0.68923489,59986.0,59985.0,1.77505046]
[1726582681530,0.3608,59997.0,59985.0,2.13585046]
[1726582681531,0.44,59996.0,59985.0,2.13585046]
[1726582681733,0.44,59996.0,59993.0,0.3608]
[1726582681929,0.00084,60010.0,59995.0,0.083336]
[1726582682126,0.44,60017.0,60009.0,1.19742237]
[1726582682325,0.3608,60028.0,60012.0,0.83662237]
[1726582682531,0.44,60013.0,60004.0,0.3608]
[1726582682731,0.3608,60012.0,60007.0,0.83662237]
[1726582682929,0.44,60008.0,60004.0,0.00184]
[1726582683124,0.3608,60005.0,59990.0,0.36330035]
[1726582683437,0.50072602,60004.0,59994.0,0.83662237]
[1726582683735,0.44,59995.0,59994.0,0.83662237]
[1726582683938,0.44,59995.0,59993.0,0.001]
[1726582684135,0.94011971,59995.0,59993.0,0.001]
[1726582685037,0.69140686,59995.0,59994.0,0.83662237]
[1726582685537,0.25140686,59995.0,59994.0,2.13485046]
[1726582686038,0.44,59996.0,59994.0,1.77405046]
[1726582686227,0.25150143,59995.0,59994.0,0.93742809]
[1726582686428,0.25150143,59995.0,59993.0,0.001]
[1726582686624,0.25150143,59995.0,59994.0,0.83662237]
[1726582686838,0.44,59996.0,59993.0,0.001]
[1726582687027,0.2495346,59995.0,59993.0,0.001]
[1726582687233,0.4986721,59995.0,59993.0,0.001]
[1726582687631,0.4986721,59995.0,59993.0,0.00090001]
[1726582687827,0.51536583,59995.0,59993.0,0.00090001]
[1726582688136,0.4986721,59995.0,59994.0,0.83662237]
[1726582688333,0.2495346,59995.0,59994.0,0.83662237]
[1726582688528,0.2495346,59995.0,59994.0,2.21918746]
[1726582688731,0.44,60008.0,60000.0,0.083327]
[1726582688930,0.44,60008.0,59994.0,2.73585046]
[1726582688931,0.44,60008.0,60007.0,0.83662237]
[1726582689238,0.69076531,60008.0,60007.0,0.83662237]
[1726582689436,0.69076531,60008.0,60007.0,1.77405046]
[1726582689640,0.25076531,60008.0,60007.0,2.13485046]
[1726582689939,0.25076531,60012.0,60007.0,2.21816946]
[1726582690139,0.25076531,60012.0,60007.0,1.29922809]
[1726582690438,0.44,60013.0,60011.0,0.83662237]
[1726582690740,0.24914069,60012.0,60007.0,1.38438709]
[1726582690935,0.24914069,60012.0,60008.0,0.3608]
[1726582691138,0.24914069,60012.0,60011.0,0.83662237]
[1726582691531,0.24914069,60012.0,60011.0,1.77405046]
[1726582691738,0.44,60013.0,60011.0,1.77405046]
[1726582691937,0.25094322,60012.0,60011.0,1.02074109]
[1726582692138,0.44,60018.0,60011.0,1.02074109]
[1726582692139,0.00096001,60033.0,60022.0,0.39662237]
[1726582692337,0.00096001,60033.0,60032.0,0.75742237]
[1726582692338,0.44,60033.0,60032.0,0.75742237]
[1726582692540,0.44,60038.0,60036.0,0.083279]
[1726582692736,0.44,60038.0,60037.0,0.3608]
[1726582692936,0.44,60038.0,60037.0,1.69485046]
[1726582693138,0.68849817,60038.0,60037.0,1.69485046]
[1726582693736,0.93997945,60038.0,60032.0,0.001]
[1726582693934,0.93997945,60038.0,60001.0,0.00249996]
[1726582693935,0.44,60033.0,60022.0,0.3608]
[1726582694261,0.8008,60023.0,60009.0,0.01671891]
[1726582694543,0.3608,60023.0,60014.0,0.3608]
[1726582694847,0.44,60016.0,60014.0,0.3608]
[1726582695148,0.44,60016.0,60014.0,1.29822809]
[1726582695149,0.25045157,60015.0,60014.0,1.29822809]
[1726582695343,0.25045157,60015.0,60014.0,0.75742237]
[1726582695531,0.86010183,60015.0,60014.0,0.39662237]
[1726582695841,0.25045157,60015.0,60014.0,0.75842237]
[1726582696240,0.3608,60023.0,60014.0,0.3618]
[1726582696438,0.44,60041.0,60035.0,0.38122237]
[1726582696633,0.3639659,60052.0,60042.0,0.38122237]
[1726582696839,0.44,60043.0,60042.0,0.38122237]
[1726582697240,0.69059254,60043.0,60042.0,0.38122237]
[1726582698147,1.44096045,60043.0,60019.0,0.3608]
[1726582698345,0.44,60021.0,60020.0,0.38122237]
[1726582698539,0.44,60021.0,60019.0,0.00184]
[1726582698744,0.94148607,60021.0,60015.0,0.3608]
[1726582699044,0.94148607,60021.0,60020.0,0.38122237]